{"text_format":"1","workbook":"xlsx","n_sheets":1,"sheets":["Price Bid"],"not_rendered":{"charts":0,"images":1,"macros":1,"external_links":0,"defined_names":1,"comments":0,"pivot_tables":0},"unopened":[],"bounds":{"document_bytes":16777216,"sheet_cells":100000,"rows_first":2000,"rows_last":500,"rows_between":2000,"halvings":0,"cell_chars":16384,"cell_head_chars":4096},"cells_cut":0,"cells_raw":0,"read":"whole","date_system":"1900"}

{"sheet":"Price Bid","index":0,"n_rows":28,"n_cols":7,"rows_kept":28,"cut":false,"hidden":false,"merged":[[22,0,25,0],[22,1,22,6],[23,1,23,6],[24,1,24,6],[25,1,25,6],[19,3,19,5],[20,2,20,6],[0,0,0,6],[1,0,1,6],[2,0,2,6],[3,0,3,6],[4,0,4,6],[6,0,6,6],[15,0,15,6]]}
["    BHARAT HEAVY ELECTRICAL LIMITED , JHANSI              "]
["TOWNSHIP CIVIL DEPARTMENT"]
["PRICE BID (JS 146)"]
["Name of work: Repair and maintenance works of the Milan Vatika Hall in the community center area in the Township premises of BHEL TP Jhansi"]
["Tender Enq No-TCX/TW/22/17"]
["Sl. No.","Description of Work","Itemwise % Allocation","Unit ","Quantity ","Rate (Rs.)","Amount (Rs.)"]
["Section\"A\"   -Based on DSR 2016"]
[1,"Providing and laying Vitrified tiles in floor with different sizes (thickness to be specified by the manufacturer), with water absorption less than 0.08% and conforming to IS:15622 , of approved brand & manufacturer, in all colours and shade, laid with cement based high polymer modified quick set tile adhesive (water based) conforming to IS : 15477, in average 6 mm thickness, including grouting of joints (Payment for grouting of joints to be made separately). Size of Tile 600x600 mm.",3.06524712E-2,"sqm",21,{"$f":"+ROUND(G8/E8,2)","v":0},{"$f":"+ROUND(C8*G20,2)","v":0}]
[2,"Finishing with Deluxe Multi surface paint system for interiors and exteriors using Primer as per manufacturers specifications :Two or more coats applied on walls @ 1.25 ltr/10 sqm over and including one coat of Special primer applied @ 0.75 ltr /10 sqm.",5.1628669500000002E-2,"sqm",404,{"$f":"+ROUND(G9/E9,2)","v":0},{"$f":"+ROUND(C9*G20,2)","v":0}]
[3,"15 mm cement plaster on the rough side of single or half brick wall of mix :  1:6 (1 cement: 6 fine sand).",8.6978589999999996E-4,"sqm",4,0,{"$f":"+ROUND(C10*G20,2)","v":0}]
[4,"Providing and applying plaster of paris putty of 2 mm thickness over plastered surface to prepare the surface even and smooth complete.",6.6135740400000004E-2,"sqm",404,0,{"$f":"+ROUND(C11*G20,2)","v":0}]
[5,"Repairs to plaster of thickness 12 mm to 20 mm in patches of area 2.5 sq. meters and under, including cutting the patch in proper shape, raking out joints and preparing and plastering the surface of the walls complete, including disposal of rubbish to the dumping ground, all complete as per directions of Engineer-In-Charge.",9.1445790000000001E-4,"sqm",3,0,{"$f":"+ROUND(C12*G20,2)","v":0}]
[6,"Demolishing cement concrete  including disposal of material within 50 meter lead (1:3:6).",1.3941177999999999E-3,"cum",1,0,{"$f":"+ROUND(C13*G20,2)","v":0}]
[7,"Demolishing brick work in cement mortar including stacking of serviceable material and disposal of unserviceable material within 50 meter lead.",1.1783812999999999E-3,"cum",1,0,{"$f":"+ROUND(C14*G20,2)","v":0}]
[8,"All items of DSR 2016 not covered above.",8.4071701799999995E-2,"L.S.",60000,0,{"$f":"+ROUND(C15*G20,2)","v":0}]
["Section \"B\"  -Premium Interior works "]
[9,"Texture painting (Matellic finshed) with co-polymer emulsion based paint  for interior application to create different types of special effects such as crinkle, dapple, weaving, canvas, spatula, colourwash, ragging, sponging, combing, and brushing  etc. as per direction of Engineer-in-charge. Brand-Asian paint /Nerolac/.",0.46489143170000002,"Sqm",244,0,{"$f":"+ROUND(C17*G20,2)","v":0}]
[10,"Providing and fixing glazing in fixed aluminium structure with EPDM rubber / neoprene gasket etc. complete as per the architectural drawings and the directions of Engineer-in-charge :- With French embossed (etched) float glass panes  of 12 mm thickness.Brand- Modiguard/ SAINTGOBAIN / TRIVENI or equivalent.",0.16405858749999999,"Sqm",17,0,{"$f":"+ROUND(C18*G20,2)","v":0}]
[11,"Fixed frame work for aesthetic purpose with built up standard tubular sections/appropriate Z sections and other sections of Polyester powder coated aluminium with dash fasteners of required dia and size, including necessary filling up the gaps at junctions, i.e. at top, bottom and sides with required EPDM rubber/ neoprene gasket etc. Aluminium sections shall be smooth, rust free, straight, mitred and jointed mechanically wherever required including cleat angle, Aluminium snap beading for glazing / panelling, C.P. brass / stainless steel screws, all complete as per required pattern & shape and the directions of Engineer-in-charge.",0.13420465500000001,"Kg",128,{"$f":"+ROUND(G19/E19,2)","v":0},{"$f":"+ROUND(C19*G20,2)","v":0}]
[null,"Total (Section A& B)",{"$f":"SUM(C8:C19)","v":1},"Total amount quoted by bidder"]
[null,"IN WORDS",{"$f":"rup(G20)","v":0}]
[]
["Note:","1. GST extra as applicable"]
[null,"2. Bidder has to quote in above unlocked cell (G-20) only. Item rate shall be calculated automatically. Calculated item rates upto four decimal points may be adjusted w.r.t. gross total amount and it shall be the itemwise final rate for  execution of contract and all other purposes."]
[null,"3. Quoted gross total amount should be considered only if quoted in this excel sheet and print out of this should only be considered for evaluation.  If Price is quoted in any other format other than the Excel Sheet enclosed to the NIT , the offer of the bidder  will be rejected"]
[null,"4. The quantity of items in the BOQ are only tentative and approximate and are liable for variation up to any extent provided the total value of the Contract does not vary by more than 30% (Thirty percent)."]
[]
[null,null,null,"(Signature and Seal of Contractor)"]